[Event "Klatovy Open-C 2024"]
[Site "Klatovy"]
[Date "2024.07.04"]
[Round "6.3"]
[White "Berka, Lubos"]
[Black "Zahorbensky, Jaroslav"]
[Result "1/2-1/2"]
[ECO "B07"]
[WhiteElo "1835"]
[BlackElo "2032"]
[Annotator "NA RC"]
[PlyCount "58"]
[EventDate "2024.06.21"]
[EventType "swiss"]
[EventCountry "CZE"]
[SourceTitle "playchess.com"]
[Source "ChessBase"]
[SourceQuality "1"]
[TimeControl "40/7200:0"]

1. e4 {[%emt 0:02:03]} d6 {[%emt 0:00:00]} 2. d4 {[%emt 0:00:00]} Nf6 {[%emt 0:00:00]} 3. Nc3 {[%emt 0:01:16]} c6 {[%emt 0:00:00]} 4. Nf3 {[%emt 0:00:00]} Bg4 {[%emt 0:00:20]} 5. Be2 {[%emt 0:00:25]} Nbd7 {[%emt 0:00:10]} 6. O-O {[%emt 0:00:00]} e5 {[%emt 0:02:36]} 7. Be3 {[%emt 0:01:39]} Be7 {[%emt 0:00:00]} 8. h3 {[%emt 0:01:18]} Bxf3 {[%emt 0:00:00]} 9. Bxf3 {[%emt 0:00:00]} O-O {[%emt 0:00:03]} 10. d5 {[%emt 0:01:40]} cxd5 {[%emt 0:00:49]} 11. Nxd5 {[%emt 0:03:01]} Nxd5 {[%emt 0:00:00]} 12. Qxd5 {[%emt 0:00:10]} Qc7 {[%emt 0:00:00]} 13. c3 {[%emt 0:01:21]} Nb6 {[%emt 0:01:10]} 14. Bxb6 {[%emt 0:00:50]} Qxb6 {[%emt 0:00:00]} 15. Qb3 {[%emt 0:01:18]} Qc6 {[%emt 0:02:04]} 16. Rad1 {[%emt 0:03:03]} Rac8 {[%emt 0:03:05]} 17. Rd5 {[%emt 0:01:46]} Rc7 {[%emt 0:10:05]} 18. Rfd1 {[%emt 0:00:15]} g6 {[%emt 0:01:51]} 19. Qb5 {[%emt 0:01:38]} Kg7 {[%emt 0:00:04]} 20. Qe2 {[%emt 0:04:41]} Qc4 {[%emt 0:05:21]} 21. Qxc4 {[%emt 0:06:34]} Rxc4 {[%emt 0:00:00]} 22. R5d3 {[%emt 0:05:07]} Rfc8 {[%emt 0:01:17]} 23. Re1 {[%emt 0:04:20]} Ra4 {[%emt 0:08:20]} 24. a3 {[%emt 0:00:00]} Rc7 {[%emt 0:01:59]} 25. g3 {[%emt 0:00:24]} f5 {[%emt 0:00:57]} 26. exf5 {[%emt 0:01:20]} gxf5 {[%emt 0:00:00]} 27. Bd5 {[%emt 0:02:19]} b5 {[%emt 0:01:46]} 28. f3 {[%emt 0:03:46]} Kf6 {[%emt 0:00:13]} 29. g4 {[%emt 0:01:39]} fxg4 {[%emt 0:08:30]} 1/2-1/2

[Event "Klatovy Open-C 2024"]
[Site "Klatovy"]
[Date "2024.07.04"]
[Round "6.4"]
[White "Mlynek, Petr"]
[Black "Navratil, Jiri"]
[Result "1/2-1/2"]
[ECO "E09"]
[WhiteElo "1969"]
[BlackElo "2058"]
[Annotator "NA RC"]
[PlyCount "72"]
[EventDate "2024.06.21"]
[EventType "swiss"]
[EventCountry "CZE"]
[SourceTitle "playchess.com"]
[Source "ChessBase"]
[SourceQuality "1"]
[TimeControl "40/7200:0"]

1. d4 {[%emt 0:00:00]} d5 {[%emt 0:00:00]} 2. c4 {[%emt 0:00:00]} e6 {[%emt 0:00:00]} 3. Nf3 {[%emt 0:00:00]} Nf6 {[%emt 0:00:00]} 4. g3 {[%emt 0:00:00]} Be7 {[%emt 0:00:00]} 5. Bg2 {[%emt 0:00:00]} O-O {[%emt 0:00:00]} 6. O-O {[%emt 0:00:00]} Nbd7 {[%emt 0:00:00]} 7. Nbd2 {[%emt 0:00:00]} c6 {[%emt 0:00:00]} 8. Qc2 {[%emt 0:00:00]} h6 {[%emt 0:00:00]} 9. e4 {[%emt 0:00:00]} dxe4 {[%emt 0:00:00]} 10. Nxe4 {[%emt 0:00:00]} Nxe4 {[%emt 0:00:00]} 11. Qxe4 {[%emt 0:00:00]} c5 {[%emt 0:02:44]} 12. Be3 {[%emt 0:00:00]} cxd4 {[%emt 0:01:21]} 13. Bxd4 {[%emt 0:00:00]} Bf6 {[%emt 0:00:36]} 14. Rfd1 {[%emt 0:00:00]} Bxd4 {[%emt 0:00:03]} 15. Rxd4 {[%emt 0:01:26]} Qb6 {[%emt 0:00:18]} 16. Rad1 {[%emt 0:00:17]} Qxb2 {[%emt 0:08:24]} 17. Rxd7 {[%emt 0:00:08]} Bxd7 {[%emt 0:00:00]} 18. Rxd7 {[%emt 0:00:00]} Qxa2 {[%emt 0:00:00]} 19. Rxb7 {[%emt 0:00:34]} Rad8 {[%emt 0:07:45]} 20. Rb1 {[%emt 0:06:41]} Rc8 {[%emt 0:09:23]} 21. Bf1 {[%emt 0:01:04]} Rfd8 {[%emt 0:09:17]} 22. Bd3 {[%emt 0:01:53]} Kf8 {[%emt 0:00:20]} 23. Rb7 {[%emt 0:00:52]} Qa5 {[%emt 0:16:09]} 24. Qf4 {[%emt 0:24:43]} f6 {[%emt 0:09:17]} 25. Nh4 {[%emt 0:04:52]} Rxd3 {[%emt 0:04:53]} 26. Ng6+ {[%emt 0:00:51]} Ke8 {[%emt 0:00:43]} 27. Re7+ {[%emt 0:04:35]} Kd8 {[%emt 0:00:40]} 28. Rxe6 {[%emt 0:00:00]} Qa1+ {[%emt 0:11:53]} 29. Kg2 {[%emt 0:00:00]} Qd4 {[%emt 0:00:00]} 30. Re4 {[%emt 0:02:43]} Qd6 {[%emt 0:00:00]} 31. Qg4 {[%emt 0:00:00]} Rc5 {[%emt 0:00:47]} 32. Qe2 {[%emt 0:01:14]} Rd2 {[%emt 0:07:57]} 33. Qe3 {[%emt 0:03:21]} Rd3 {[%emt 0:00:29]} 34. Qe2 {[%emt 0:01:40]} Rd2 {[%emt 0:01:30]} 35. Qe3 {[%emt 0:00:48]} Rd3 {[%emt 0:01:24]} 36. Qe2 {[%emt 0:00:00]} Rd2 {[%emt 0:00:37]} 1/2-1/2

[Event "Klatovy Open-C 2024"]
[Site "Klatovy"]
[Date "2024.07.04"]
[Round "6.5"]
[White "Turner, Radek"]
[Black "Pokora, Lubomir"]
[Result "1-0"]
[ECO "A25"]
[WhiteElo "2012"]
[BlackElo "1857"]
[Annotator "NA RC"]
[PlyCount "91"]
[EventDate "2024.06.21"]
[EventType "swiss"]
[EventCountry "CZE"]
[SourceTitle "playchess.com"]
[Source "ChessBase"]
[SourceQuality "1"]
[TimeControl "40/7200:0"]

1. c4 {[%emt 0:04:12]} e5 {[%emt 0:00:00]} 2. g3 {[%emt 0:00:00]} Nc6 {[%emt 0:00:00]} 3. Nc3 {[%emt 0:01:17]} g6 {[%emt 0:00:00]} 4. Bg2 {[%emt 0:00:00]} Bg7 {[%emt 0:00:00]} 5. e3 {[%emt 0:00:00]} f5 {[%emt 0:00:00]} 6. Nge2 {[%emt 0:00:00]} d6 {[%emt 0:00:17]} 7. d3 {[%emt 0:00:00]} Nf6 {[%emt 0:00:00]} 8. Rb1 {[%emt 0:00:00]} O-O {[%emt 0:00:14]} 9. b4 {[%emt 0:00:00]} h6 {[%emt 0:00:24]} 10. b5 {[%emt 0:00:00]} Ne7 {[%emt 0:00:00]} 11. Nd5 {[%emt 0:02:11]} Nexd5 {[%emt 0:05:15]} 12. cxd5 {[%emt 0:01:45]} b6 {[%emt 0:00:46]} 13. e4 {[%emt 0:00:41]} a6 {[%emt 0:06:59]} 14. bxa6 {[%emt 0:03:46]} Rxa6 {[%emt 0:02:00]} 15. Qc2 {[%emt 0:00:00]} Bd7 {[%emt 0:01:12]} 16. O-O {[%emt 0:00:00]} g5 {[%emt 0:04:45]} 17. f3 {[%emt 0:00:33]} Ne8 {[%emt 0:06:50]} 18. a3 {[%emt 0:00:35]} h5 {[%emt 0:09:41]} 19. d4 {[%emt 0:02:10]} fxe4 {[%emt 0:08:14]} 20. fxe4 {[%emt 0:02:37]} Rxf1+ {[%emt 0:02:34]} 21. Bxf1 {[%emt 0:00:00]} Ra5 {[%emt 0:02:36]} 22. Qd2 {[%emt 0:00:16]} g4 {[%emt 0:04:08]} 23. Bb2 {[%emt 0:04:03]} Qf6 {[%emt 0:02:15]} 24. Bg2 {[%emt 0:02:25]} Bh6 {[%emt 0:02:22]} 25. Qc3 {[%emt 0:01:02]} exd4 {[%emt 0:06:27]} 26. Nxd4 {[%emt 0:02:14]} Rc5 {[%emt 0:00:25]} 27. Qd3 {[%emt 0:00:00]} Qg5 {[%emt 0:00:00]} 28. Qf1 {[%emt 0:03:57]} Qe3+ {[%emt 0:04:16]} 29. Kh1 {[%emt 0:00:05]} Bg7 {[%emt 0:00:36]} 30. Ne6 {[%emt 0:11:44]} Bxb2 {[%emt 0:10:37]} 31. Nxc5 {[%emt 0:00:00]} bxc5 {[%emt 0:00:51]} 32. Rxb2 {[%emt 0:00:00]} Qxa3 {[%emt 0:00:00]} 33. Rf2 {[%emt 0:00:00]} Qa4 {[%emt 0:02:16]} 34. Rf8+ {[%emt 0:00:00]} Kh7 {[%emt 0:01:13]} 35. Qf7+ {[%emt 0:00:10]} Ng7 {[%emt 0:00:00]} 36. Qg8+ {[%emt 0:05:29]} Kg6 {[%emt 0:00:46]} 37. Rf1 {[%emt 0:00:00]} Bb5 {[%emt 0:02:20]} 38. Qf7+ {[%emt 0:00:19]} Kh7 {[%emt 0:00:01]} 39. Rc1 {[%emt 0:03:26]} Qd4 {[%emt 0:04:01]} 40. Qf4 {[%emt 0:00:00]} Bd3 {[%emt 0:00:30]} 41. Re1 {[%emt 2:00:09]} c4 {[%emt 2:00:17]} 42. e5 {[%emt 0:00:29]} dxe5 {[%emt 0:00:19]} 43. Qxe5 {[%emt 0:01:16]} Qxe5 {[%emt 0:00:14]} 44. Rxe5 {[%emt 0:00:00]} c3 {[%emt 0:00:00]} 45. Be4+ {[%emt 0:00:00]} Bxe4+ {[%emt 0:00:00]} 46. Rxe4 {[%emt 0:00:00]} 1-0

[Event "Klatovy Open-C 2024"]
[Site "Klatovy"]
[Date "2024.07.04"]
[Round "6.6"]
[White "Danko, Jiri"]
[Black "Havelka, Petr"]
[Result "1-0"]
[ECO "B01"]
[WhiteElo "1954"]
[BlackElo "1851"]
[Annotator "NA RC"]
[PlyCount "29"]
[EventDate "2024.06.21"]
[EventType "swiss"]
[EventCountry "CZE"]
[SourceTitle "playchess.com"]
[Source "ChessBase"]
[SourceQuality "1"]
[TimeControl "40/7200:0"]

1. e4 {[%emt 0:00:00]} d5 {[%emt 0:00:00]} 2. exd5 {[%emt 0:00:00]} Qxd5 {[%emt 0:00:00]} 3. Nc3 {[%emt 0:00:00]} Qd8 {[%emt 0:00:00]} 4. Bc4 {[%emt 0:00:00]} Nf6 {[%emt 0:00:00]} 5. Nf3 {[%emt 0:00:00]} e6 {[%emt 0:00:00]} 6. Qe2 {[%emt 0:07:01]} Be7 {[%emt 0:01:39]} 7. Ne5 {[%emt 0:07:28]} O-O {[%emt 0:04:33]} 8. O-O {[%emt 0:09:42]} a6 {[%emt 0:06:05]} 9. a4 {[%emt 0:03:43]} Bd7 {[%emt 0:02:02]} 10. d4 {[%emt 0:01:11]} Nc6 {[%emt 0:05:35]} 11. Be3 {[%emt 0:07:35]} Nb4 {[%emt 0:04:27]} 12. Rfe1 {[%emt 0:20:16]} Nbd5 {[%emt 0:19:02]} 13. Bd2 {[%emt 0:03:23]} c5 {[%emt 0:13:59]} 14. Bxd5 {[%emt 0:33:31]} exd5 {[%emt 0:05:06]} 15. Nxd7 {[%emt 0:26:10]} 1-0

[Event "Klatovy Open-C 2024"]
[Site "Klatovy"]
[Date "2024.07.04"]
[Round "6.7"]
[White "Novotny, Jaroslav"]
[Black "Navratilova, Alena"]
[Result "1-0"]
[ECO "C02"]
[WhiteElo "2172"]
[BlackElo "1729"]
[Annotator "RC"]
[PlyCount "47"]
[EventDate "2024.06.21"]
[EventType "swiss"]
[EventCountry "CZE"]
[SourceTitle "playchess.com"]
[Source "ChessBase"]
[SourceQuality "1"]
[TimeControl "40/7200:0"]

1. e4 {[%emt 0:00:00]} e6 {[%emt 0:00:00]} 2. d4 {[%emt 0:00:00]} d5 {[%emt 0:00:00]} 3. e5 {[%emt 0:00:00]} c5 {[%emt 0:00:00]} 4. c3 {[%emt 0:00:00]} Bd7 {[%emt 0:00:45]} 5. Nf3 {[%emt 0:00:00]} h6 {[%emt 0:00:00]} 6. Bd3 {[%emt 0:00:10]} Nc6 {[%emt 0:01:31]} 7. dxc5 {[%emt 0:12:22]} Bxc5 {[%emt 0:00:46]} 8. O-O {[%emt 0:00:00]} Nge7 {[%emt 0:00:26]} 9. Nbd2 {[%emt 0:02:33]} Qc7 {[%emt 0:03:04]} 10. Nb3 {[%emt 0:00:07]} Bb6 {[%emt 0:00:06]} 11. Re1 {[%emt 0:04:05]} O-O-O {[%emt 0:11:49]} 12. Be3 {[%emt 0:01:21]} g5 {[%emt 0:05:12]} 13. Bxb6 {[%emt 0:03:30]} Qxb6 {[%emt 0:00:29]} 14. Qe2 {[%emt 0:02:43]} Nf5 {[%emt 0:03:59]} 15. Rac1 {[%emt 0:22:17]} Kb8 {[%emt 0:05:50]} 16. g4 {[%emt 0:00:12]} Nfe7 {[%emt 0:01:23]} 17. Qe3 {[%emt 0:02:54]} Qxe3 {[%emt 0:00:52]} 18. Rxe3 {[%emt 0:00:00]} Rdf8 {[%emt 0:02:58]} 19. Nbd4 {[%emt 0:04:13]} f5 {[%emt 0:07:26]} 20. exf6 {[%emt 0:04:18]} Rxf6 {[%emt 0:03:12]} 21. Rce1 {[%emt 0:01:26]} Nxd4 {[%emt 0:02:28]} 22. Nxd4 {[%emt 0:01:53]} Rhf8 {[%emt 0:01:12]} 23. Nxe6 {[%emt 0:00:46]} Rxf2 {[%emt 0:02:00]} 24. Nxf8 {[%emt 0:00:12]} 1-0

[Event "Klatovy Open-C 2024"]
[Site "Klatovy"]
[Date "2024.07.04"]
[Round "6.8"]
[White "Fiser, Jiri"]
[Black "Hlavac, Rudolf"]
[Result "1/2-1/2"]
[ECO "D04"]
[WhiteElo "2134"]
[BlackElo "1927"]
[Annotator "RC"]
[PlyCount "94"]
[EventDate "2024.06.21"]
[EventType "swiss"]
[EventCountry "CZE"]
[SourceTitle "playchess.com"]
[Source "ChessBase"]
[SourceQuality "1"]
[TimeControl "40/7200:0"]

1. Nf3 {[%emt 0:00:00]} Nf6 {[%emt 0:00:00]} 2. b3 {[%emt 0:00:00]} d5 {[%emt 0:00:00]} 3. Bb2 {[%emt 2:00:00]} Nbd7 {[%emt 0:00:18]} 4. e3 {[%emt 0:00:00]} g6 {[%emt 0:00:00]} 5. d4 {[%emt 0:00:00]} Bg7 {[%emt 0:00:00]} 6. Bd3 {[%emt 0:00:00]} b6 {[%emt 0:02:42]} 7. Nbd2 {[%emt 0:00:00]} c5 {[%emt 0:00:21]} 8. O-O {[%emt 0:00:00]} Bb7 {[%emt 0:00:28]} 9. c4 {[%emt 0:00:00]} O-O {[%emt 0:02:12]} 10. Rc1 {[%emt 0:00:00]} Rc8 {[%emt 0:03:12]} 11. a3 {[%emt 0:00:00]} dxc4 {[%emt 0:06:13]} 12. bxc4 {[%emt 0:00:00]} cxd4 {[%emt 0:00:10]} 13. exd4 {[%emt 0:00:00]} Nc5 {[%emt 0:10:00]} 14. Bb1 {[%emt 0:00:00]} Nfe4 {[%emt 0:06:28]} 15. Nxe4 {[%emt 0:00:00]} Bxe4 {[%emt 0:03:35]} 16. Bxe4 {[%emt 0:00:00]} Nxe4 {[%emt 0:00:00]} 17. Qe2 {[%emt 0:00:00]} Nd6 {[%emt 0:01:22]} 18. Rfd1 {[%emt 0:00:00]} e6 {[%emt 0:06:59]} 19. Ne5 {[%emt 0:00:00]} Nf5 {[%emt 0:02:43]} 20. d5 {[%emt 0:00:00]} exd5 {[%emt 0:01:08]} 21. Rxd5 {[%emt 0:00:00]} Qg5 {[%emt 0:07:54]} 22. Nf3 {[%emt 0:00:00]} Qe7 {[%emt 0:02:33]} 23. Qxe7 {[%emt 0:00:00]} Nxe7 {[%emt 0:00:00]} 24. Bxg7 {[%emt 0:00:00]} Nxd5 {[%emt 0:01:43]} 25. Bxf8 {[%emt 0:00:00]} Kxf8 {[%emt 0:00:00]} 26. Kf1 {[%emt 0:00:00]} Nf4 {[%emt 0:02:06]} 27. g3 {[%emt 0:00:00]} Ne6 {[%emt 0:57:53]} 28. Ke2 {[%emt 0:00:00]} Nc5 {[%emt 0:00:00]} 29. Rc3 {[%emt 0:00:00]} h5 {[%emt 0:00:00]} 30. h4 {[%emt 0:00:00]} Na4 {[%emt 0:00:00]} 31. Rc2 {[%emt 0:00:00]} Ke7 {[%emt 0:00:00]} 32. Nd4 {[%emt 0:00:00]} a6 {[%emt 0:00:00]} 33. Ke3 {[%emt 0:00:00]} Kd6 {[%emt 0:00:00]} 34. f3 {[%emt 0:00:00]} Re8+ {[%emt 0:00:00]} 35. Kd2 {[%emt 0:00:00]} Re5 {[%emt 0:00:00]} 36. Rc1 {[%emt 0:00:00]} Nb2 {[%emt 0:00:00]} 37. Rc2 {[%emt 0:00:00]} Na4 {[%emt 0:00:00]} 38. Rc1 {[%emt 0:00:00]} Nc5 {[%emt 0:00:00]} 39. Rb1 {[%emt 0:00:00]} Nd7 {[%emt 0:00:00]} 40. Rc1 {[%emt 0:00:00]} Ra5 {[%emt 0:00:00]} 41. Rc3 {[%emt 1:37:58]} Ne5 {[%emt 1:33:37]} 42. Kc2 {[%emt 0:00:42]} Rc5 {[%emt 0:01:51]} 43. Kb3 {[%emt 0:00:00]} Rc8 {[%emt 0:01:48]} 44. Kb4 {[%emt 0:02:52]} Nc6+ {[%emt 0:03:28]} 45. Nxc6 {[%emt 0:00:00]} Kxc6 {[%emt 0:00:00]} 46. Re3 {[%emt 0:00:05]} Rc7 {[%emt 0:00:00]} 47. Kc3 {[%emt 0:00:54]} Rd7 {[%emt 0:00:08]} 1/2-1/2

[Event "Klatovy Open-C 2024"]
[Site "Klatovy"]
[Date "2024.07.04"]
[Round "6.9"]
[White "Macho, Miloslav"]
[Black "Zidu, Jan"]
[Result "0-1"]
[ECO "D04"]
[WhiteElo "1845"]
[BlackElo "1905"]
[Annotator "NA RC"]
[PlyCount "54"]
[EventDate "2024.06.21"]
[EventType "swiss"]
[EventCountry "CZE"]
[SourceTitle "playchess.com"]
[Source "ChessBase"]
[SourceQuality "1"]
[TimeControl "40/7200:0"]

1. Nf3 {[%emt 0:13:15]} d5 {[%emt 0:00:00]} 2. e3 {[%emt 0:00:00]} Nf6 {[%emt 0:00:00]} 3. d4 {[%emt 0:00:00]} Bf5 {[%emt 0:00:22]} 4. c3 {[%emt 0:01:01]} c6 {[%emt 0:00:21]} 5. Be2 {[%emt 0:00:26]} h6 {[%emt 0:00:00]} 6. Nbd2 {[%emt 0:00:09]} Nbd7 {[%emt 0:00:00]} 7. O-O {[%emt 0:01:03]} Qc7 {[%emt 0:00:00]} 8. Re1 {[%emt 0:00:32]} g5 {[%emt 0:05:57]} 9. Nf1 {[%emt 0:02:56]} Ne4 {[%emt 0:13:41]} 10. c4 {[%emt 0:00:37]} e6 {[%emt 0:02:33]} 11. c5 {[%emt 0:01:58]} Bg7 {[%emt 0:02:06]} 12. N3d2 {[%emt 0:04:16]} b6 {[%emt 0:05:02]} 13. cxb6 {[%emt 0:00:00]} axb6 {[%emt 0:00:18]} 14. Nxe4 {[%emt 0:02:32]} Bxe4 {[%emt 0:00:00]} 15. Ng3 {[%emt 0:00:04]} Bg6 {[%emt 0:00:08]} 16. Nh5 {[%emt 0:00:00]} Bf8 {[%emt 0:01:01]} 17. Bd3 {[%emt 0:09:29]} Bxd3 {[%emt 0:01:35]} 18. Qxd3 {[%emt 0:00:00]} Bd6 {[%emt 0:01:13]} 19. h3 {[%emt 0:03:26]} O-O-O {[%emt 0:06:23]} 20. Bd2 {[%emt 0:04:23]} f5 {[%emt 0:04:15]} 21. Rec1 {[%emt 0:03:21]} Nb8 {[%emt 0:03:54]} 22. b4 {[%emt 0:02:36]} Qf7 {[%emt 0:01:06]} 23. Ng3 {[%emt 0:00:21]} f4 {[%emt 0:05:52]} 24. Nf1 {[%emt 0:00:15]} f3 {[%emt 0:09:56]} 25. g3 {[%emt 0:02:38]} Qh5 {[%emt 0:11:11]} 26. Kh2 {[%emt 0:08:35]} g4 {[%emt 0:00:00]} 27. h4 {[%emt 0:00:01]} Qxh4+ {[%emt 0:00:00]} 0-1

[Event "Klatovy Open-C 2024"]
[Site "Klatovy"]
[Date "2024.07.04"]
[Round "6.10"]
[White "Vachal, Josef"]
[Black "Vavrinek, Tomas"]
[Result "1/2-1/2"]
[ECO "B33"]
[WhiteElo "2099"]
[BlackElo "1827"]
[Annotator "NA RC"]
[PlyCount "38"]
[EventDate "2024.06.21"]
[EventType "swiss"]
[EventCountry "CZE"]
[SourceTitle "playchess.com"]
[Source "ChessBase"]
[SourceQuality "1"]
[TimeControl "40/7200:0"]

1. e4 {[%emt 0:00:00]} c5 {[%emt 0:00:46]} 2. Nf3 {[%emt 0:00:00]} Nc6 {[%emt 0:00:00]} 3. d4 {[%emt 0:00:00]} cxd4 {[%emt 0:00:00]} 4. Nxd4 {[%emt 0:00:00]} Nf6 {[%emt 0:00:00]} 5. Nc3 {[%emt 0:00:00]} e5 {[%emt 0:00:00]} 6. Ndb5 {[%emt 0:00:00]} d6 {[%emt 0:00:00]} 7. Bg5 {[%emt 0:00:00]} a6 {[%emt 0:00:00]} 8. Na3 {[%emt 0:00:00]} b5 {[%emt 0:05:16]} 9. Nd5 {[%emt 0:00:00]} Be7 {[%emt 0:00:09]} 10. Bxf6 {[%emt 0:00:00]} Bxf6 {[%emt 0:00:00]} 11. Nxf6+ {[%emt 0:06:44]} Qxf6 {[%emt 0:05:35]} 12. c3 {[%emt 0:02:20]} O-O {[%emt 0:03:57]} 13. Bd3 {[%emt 0:07:19]} Bb7 {[%emt 0:01:04]} 14. Nc2 {[%emt 0:05:33]} Rfd8 {[%emt 0:05:20]} 15. Ne3 {[%emt 0:08:44]} Ne7 {[%emt 0:01:09]} 16. O-O {[%emt 0:14:30]} d5 {[%emt 0:01:49]} 17. exd5 {[%emt 0:03:40]} Nxd5 {[%emt 0:00:17]} 18. Nxd5 {[%emt 0:02:13]} Bxd5 {[%emt 0:00:36]} 19. Qe2 {[%emt 0:00:30]} Qg5 {[%emt 1:34:02]} 1/2-1/2

[Event "Klatovy Open-C 2024"]
[Site "Klatovy"]
[Date "2024.07.07"]
[Round "9.3"]
[White "Korsa, Jindrich"]
[Black "Chalus, Karel"]
[Result "1-0"]
[ECO "B23"]
[WhiteElo "2036"]
[BlackElo "1982"]
[Annotator "NA RC"]
[PlyCount "65"]
[EventDate "2024.06.21"]
[EventType "swiss"]
[EventCountry "CZE"]
[SourceTitle "playchess.com"]
[Source "ChessBase"]
[SourceQuality "1"]
[TimeControl "40/7200:0"]

1. e4 {[%emt 0:00:00]} c5 {[%emt 0:00:00]} 2. Nc3 {[%emt 0:00:00]} Nc6 {[%emt 0:00:00]} 3. g4 {[%emt 0:00:00]} e6 {[%emt 0:00:00]} 4. d3 {[%emt 0:00:00]} d5 {[%emt 0:00:00]} 5. Bg2 {[%emt 0:00:00]} d4 {[%emt 0:09:31]} 6. Nce2 {[%emt 0:00:00] B23: Closed Sicilian: Lines without g3.} e5 {[%emt 0:09:17]} 7. Ng3 {[%emt 0:00:00]} Be6 {[%emt 0:02:06]} 8. h3 {[%emt 0:00:00]} Qb6 {[%emt 0:01:01]} 9. N1e2 {[%emt 0:00:00]} O-O-O {[%emt 0:03:29]} 10. f4 {[%emt 0:00:00]} f6 {[%emt 0:00:35]} 11. b3 {[%emt 0:00:00]} g6 {[%emt 0:08:14]} 12. O-O {[%emt 0:00:13]} c4 {[%emt 0:02:31]} 13. f5 {[%emt 0:03:00]} cxd3 {[%emt 0:03:37]} 14. cxd3 {[%emt 0:00:00]} gxf5 {[%emt 0:00:31]} 15. exf5 {[%emt 0:00:00]} Bd5 {[%emt 0:02:56]} (15... Bf7 $11) 16. Ne4 {[%emt 0:00:21]} (16. Bxd5 $14 Rxd5 17. Ne4) 16... h5 {[%emt 0:01:44]} 17. g5 {[%emt 0:00:11]} fxg5 {[%emt 0:00:49]} 18. Bxg5 {[%emt 0:00:00]} Rd7 {[%emt 0:02:36] [#]} (18... Kb8 $11 {keeps the balance.}) 19. h4 $1 {[%emt 0:01:33]} Bxe4 {[%emt 0:14:41]} 20. Bxe4 {[%emt 0:00:00]} Nb4 {[%emt 0:02:48]} 21. Ng3 {[%emt 0:02:52]} Nd5 {[%emt 0:01:01]} 22. Bxd5 {[%emt 0:02:01]} Rxd5 {[%emt 0:00:00]} 23. Ne4 {[%emt 0:00:09]} Ne7 {[%emt 0:02:56]} 24. Qf3 {[%emt 0:01:02]} Kb8 {[%emt 0:01:13]} 25. Rae1 {[%emt 0:02:47]} Nc6 {[%emt 0:03:32]} 26. Kh1 {[%emt 0:04:00]} Qc7 {[%emt 0:00:34]} 27. Rg1 {[%emt 0:01:17]} Qf7 {[%emt 0:00:26]} 28. Rg2 $16 {[%emt 0:04:07]} Ra5 {[%emt 0:03:16]} 29. Reg1 {[%emt 0:02:21]} Ne7 {[%emt 0:03:22]} 30. Bxe7 {[%emt 0:03:30]} Bxe7 {[%emt 0:00:15]} 31. Rg7 {[%emt 1:30:36]} Qd5 {[%emt 0:36:59]} 32. Rxe7 {[%emt 0:00:00]} Rxa2 {[%emt 0:00:00]} 33. f6 {[%emt 0:00:00]} 1-0